Cogmind - Beta 10.2 *** ADVENTURER MODE // 2021.08.25 @ 10:14:20 Player: Havoc Result: Destroyed by G-47 Trooper with Particle Gun Performance ------------- Evolutions (0) 0 Regions Visited (1) 200 Robots Destroyed (15) 75 Value Destroyed (412) 412 Prototype IDs (2) 40 Alien Tech Used (0) 0 Bonus (0) 0 TOTAL SCORE: 727 Bonus ------- None Cogmind --------- Core Integrity 0/250 Matter 300/300 Energy 125/125 System Corruption 0% Temperature Cool (9) Movement Core (150) Ox2 Location -10/Materials Parts ------- > --- POWER (1) -------- Light Ion Engine > --- PROPULSION (2) --- (None) > --- UTILITY (2) ------ Small Storage Unit > --- WEAPON (2) ------- (None) > --- INVENTORY (6) ---- (None) Peak State ------------ > --- POWER ------------ Light Ion Engine > --- PROPULSION ------- Aluminum Leg Aluminum Leg > --- UTILITY ---------- Heat Sink Tractor Beam > --- WEAPON ----------- Light Assault Rifle Light Assault Rifle > --- INVENTORY -------- Aluminum Leg EM Pulse Gun [Rating: 7] Favorites ----------- Power Light Ion Engine Engine Light Ion Engine Propulsion Aluminum Leg Leg Aluminum Leg Flight Unit Flight Unit Utility Heat Sink Device Heat Sink Storage Small Storage Unit Protection Light Armor Plating Weapon Light Assault Rifle Energy Gun EM Pulse Gun Ballistic Gun Light Assault Rifle Ballistic Cannon Light Cannon Launcher Grenade Launcher Build | -11 -10 ------- Run | Scr Mat Slots Evolved . | . . Power . | . . Propulsion . | . . Utility . | . . Weapon . | . . Parts Attached 19 | 8 11 Power 3 | 2 1 Engine 3 | 2 1 Core . | . . Reactor . | . . Propulsion 6 | 3 3 Treads . | . . Leg 5 | 3 2 Wheel . | . . Hover . | . . Flight 1 | . 1 Utility 4 | 1 3 Device 2 | 1 1 Storage 1 | . 1 Processor . | . . Hackware . | . . Protection 1 | . 1 Artifact . | . . Weapon 6 | 2 4 Energy Gun 1 | . 1 Energy Cannon . | . . Ballistic Gun 3 | 2 1 Ballistic Cannon 1 | . 1 Launcher 1 | . 1 Special Weapon . | . . Impact Weapon . | . . Slashing Weapon . | . . Piercing Weapon . | . . Special Melee Weapon . | . . Unidentified Prototypes . | . . Parts Lost 9 | . 9 Power 1 | . 1 Propulsion 2 | . 2 Utility 2 | . 2 Weapon 4 | . 4 Highest Loss Streak 7 | . 7 Average Slot Usage (%) 66 | . 66 Engine 11 | . 11 Leg 11 | . 11 Device 4 | . 4 Storage 7 | . 7 Protection 3 | . 3 Energy Gun 7 | . 7 Ballistic Gun 18 | . 18 Naked Turns . | . . Heaviest Build 10 | 6 10 Greatest Support 20 | 20 20 Greatest Overweight (x) 3 | . 3 Average Overweight (x) . | . 1 Largest Inventory Capacity 6 | 4 6 Average Capacity 4 | 4 5 Most Carried 4 | 3 4 Average Carried 1 | 1 1 Final Capacity 6 | 4 6 Final Carried 2 | 2 . Class Distribution -------------------- 100% | Mutant Dominant Class ---------------- Mutant | -10/Materials Resources | -11 -10 ----------- Run | Scr Mat Matter Collected 453 | 278 175 Remotely 50 | . 50 Salvage Created 470 | 50 420 Parts 30 | 3 27 Haulers Intercepted . | . . Recyclers Shooed . | . . Parts Field Recycled . | . . Retrieved Matter . | . . Parts Self-Destructed . | . . Prevented . | . . Kills | -11 -10 ------- Run | Scr Mat Combat Hostiles Destroyed 13 | 1 12 Melee 1 | . 1 Guns 5 | 1 4 AOE 7 | . 7 Classes Destroyed 4 | 1 3 Recycler 1 | . 1 Watcher 1 | . 1 Swarmer 3 | . 3 Grunt 10 | 1 9 Best Kill Streak 9 | 1 9 Combat Bots Only 7 | 1 7 Max Kills in Single Turn 4 | 1 4 Gunslinging . | . . Exploded 3 | . 3 Melee 1 | . 1 Uniques/NPCs Destroyed . | . . Combat | -11 -10 -------- Run | Scr Mat Damage Taken 1058 | 82 976 Core 250 | . 250 Absorbed by Shields . | . . Core Remaining (%) 100 | 100 . Volleys Fired 35 | 4 31 Largest 2 | 2 2 Hottest 60 | 40 60 Shots Fired 62 | 8 54 Gun 54 | 8 46 Cannon 1 | . 1 Launcher 7 | . 7 Special . | . . Kinetic 50 | 8 42 Thermal . | . . Explosive 7 | . 7 Electromagnetic 5 | . 5 Robot Hit Streak 18 | 8 18 Robot Miss Streak 2 | . 2 Penetration Max . | . . Secondary Targets . | . . Shots Hit Robots 54 | 8 46 Core Hits 34 | 3 31 Critical Hits . | . . Critical Kills . | . . Critical Parts Destroyed . | . . Melee Attacks . | . . Impact . | . . Slashing . | . . Piercing . | . . Sneak Attacks . | . . Combat Hostiles . | . . Follow-up Attacks . | . . Damage Inflicted 1009 | 59 950 Guns 403 | 59 344 Cannons 15 | . 15 Explosions 557 | . 557 Melee . | . . Ramming 34 | . 34 Kinetic 348 | 59 289 Thermal . | . . Explosive 557 | . 557 Electromagnetic 70 | . 70 Impact . | . . Slashing . | . . Piercing . | . . Highest Corruption . | . . Average Corruption . | . . Corruption Purged . | . . Overload Shots . | . . Overflow Damage 15 | . 15 Projectiles . | . . Explosions 15 | . 15 Melee . | . . Knockbacks 1 | . 1 Impact 1 | . 1 Kinetic . | . . Secondary . | . . Self-Inflicted Damage 228 | . 228 Shots 9 | . 9 Rammed 11 | . 11 Targets Rammed 12 | . 12 Kicked 1 | . 1 Crushed . | . . Highest Temperature 65 | 12 65 Average Temperature 15 | 8 16 Received Heat Transfer 591 | 60 531 Siege Activations . | . . Robots Corrupted . | . . Combat Hostiles . | . . Parts Fried . | . . Impact Corruptions . | . . Robots Melted . | . . Combat Hostiles . | . . Parts Melted . | . . Heat Transferred . | . . Parts Sabotaged . | . . Parts Stolen . | . . Parts Stripped . | . . Power Chain Reactions . | . . Missiles Intercepted . | . . Alert | -11 -10 ------- Run | Scr Mat Peak Influence 244 | 20 244 Initial . | . . Average 30 | 3 83 Maximum Alert Level 1 | . 1 Low Security (%) 91 | 100 73 Level 1 8 | . 26 Level 2 . | . . Level 3 . | . . Level 4 . | . . Level 5 . | . . High Security . | . . Max Security . | . . Squads Dispatched 3 | . 3 Investigation 3 | . 3 Extermination . | . . Reinforcement . | . . Assault . | . . Garrison . | . . Intercept . | . . Construction Impeded . | . . Haulers Reinforced . | . . Stealth | -11 -10 --------- Run | Scr Mat Distress Signals . | . . Communications Jammed . | . . Distress Signals . | . . Times Spotted 16 | 1 15 Peak Tracking Total 6 | 1 6 Tactical Retreats . | . . Traps | -11 -10 ------- Run | Scr Mat Traps Triggered 1 | . 1 Indirectly . | . . Trap Hack Attempts . | . . Triggered . | . . Disarmed . | . . Reprogrammed . | . . Reused . | . . Traps Extracted . | . . Installed . | . . Triggered . | . . Machines | -11 -10 ---------- Run | Scr Mat Machines Disabled 2 | . 2 Max in Single Turn 2 | . 2 Machines Sabotaged . | . . Garrisons Compromised . | . . Overloaded Fab Kills . | . . Fab Network Shutdowns . | . . Hacking | -11 -10 --------- Run | Scr Mat Machines Accessed 2 | . 2 Terminals 2 | . 2 Fabricators . | . . Repair Stations . | . . Recycling Units . | . . Scanalyzers . | . . Garrison Access . | . . Total Hacks 9 | . 9 Successful 6 | . 6 Failed 3 | . 3 Catastrophic . | . . Database Lockouts . | . . Manual . | . . Terminals 9 | . 9 Fabricators . | . . Repair Stations . | . . Recycling Units . | . . Scanalyzers . | . . Garrison Access . | . . Terminal Hacks 6 | . 6 Record 1 | . 1 Prototype ID Bank 1 | . 1 Alert Level 1 | . 1 Unreport Threat 1 | . 1 Surveillance Status 1 | . 1 Zone Layout 1 | . 1 Fabricator Hacks . | . . Repair Station Hacks . | . . Recycling Unit Hacks . | . . Scanalyzer . | . . Garrison Access Hacks . | . . Unauthorized Hacks . | . . Terminals . | . . Fabricators . | . . Repair Stations . | . . Recycling Units . | . . Scanalyzers . | . . Garrison Access . | . . Data Cores Recovered . | . . Used . | . . Hacking Detections 2 | . 2 Full Trace Events 2 | . 2 Feedback Events . | . . Feedback Blocked . | . . Robot Schematics Acquired . | . . Robots Built . | . . Matter . | . . Time . | . . Total Robot Build Rating . | . . Part Schematics Acquired . | . . Parts Built . | . . Matter . | . . Time . | . . Total Part Build Rating . | . . Parts Repaired . | . . Time . | . . Parts Recycled . | . . Recycled Matter . | . . Retrieved Matter . | . . Retrieved Components . | . . Parts Scanalyzed . | . . Part Schematics Acquired . | . . Parts Damaged . | . . Bothacking | -11 -10 ------------ Run | Scr Mat Used RIF Installer . | . . Robots Hacked . | . . Non-combat . | . . Combat . | . . Robot Hacks Applied . | . . Relay Couplers Released . | . . Robots Rewired . | . . Allies Hacked . | . . Hacks Repelled . | . . Allies | -11 -10 -------- Run | Scr Mat Total Allies . | . . Largest Group . | . . Highest-Rated Group . | . . Highest-Rated Ally . | . . Total Orders . | . . Ally Attacks . | . . Total Damage . | . . Kills . | . . Allies Corrupted . | . . Allies Melted . | . . Intel | -11 -10 ------- Run | Scr Mat Robot Analysis Total . | . . Derelict Logs Recovered . | . . Drone Launches . | . . Drone Recoveries . | . . Exploration | -11 -10 ------------- Run | Scr Mat Turns Passed 1852 | 1233 619 Spaces Moved 802 | 470 332 Core 230 | 57 173 Treads . | . . Legs 572 | 413 159 Wheels . | . . Hover . | . . Flight . | . . Fastest Speed 50 | 50 50 Average Speed 126 | 111 147 Slowest Speed 200 | 120 200 Overloaded Moves . | . . Propulsion Burnouts . | . . Robots Hopped . | . . Cave-ins Triggered . | . . Exploration Rate (%) 25 | 25 26 Regions Visited 1 Branch Regions . Pre-discovered Areas . | . . Known Exits Taken . | . . Unknown Exits Taken 1 | 1 . Scrap Searched . | . . Spaces Dug . | . . Terrain Destroyed 69 | . 69 Melee . | . . Projectile . | . . AOE 69 | . 69 Terrain Rammed . | . . Walls Destroyed . | . . Machines Disabled . | . . Actions | -11 -10 --------- Run | Scr Mat Total 1586 | 1172 414 Wait 691 | 682 9 Move 801 | 469 332 Hop . | . . Pick Up 19 | 8 11 Fast Attach . | . . Attach 15 | 7 8 Detach 1 | 1 . Swap 4 | 1 3 Drop 8 | . 8 Fire 35 | 4 31 Melee . | . . Ram 11 | . 11 Kick 1 | . 1 Crush . | . . Escape Stasis . | . . Rewire . | . . Trap . | . . Miscellaneous . | . . Route ------- -11/Scrapyard -10/Materials (discovered 1 exit: [*Min]) History --------- Turn | Location | Event 2 | -11/Scrapyard | Met Revision 17 140 | -11/Scrapyard | Discovered new exit (range 8) 1234 | -11/Scrapyard | Entered Materials 1235 | -10/Materials | Build established: Mutant 1490 | -10/Materials | Destroyed 7 combat bots 1511 | -10/Materials | Lost 7 parts (1p2n2u2w) 1807 | -10/Materials | Discovered new exit (range 16) 1828 | -10/Materials | Core integrity fell below 50% 1848 | -10/Materials | Core integrity fell below 20% 1853 | -10/Materials | Destroyed by G-47 Trooper with Particle Gun Last Messages --------------- 01664_ The unstable cave ceiling collapses. 01664_ U-05 Engineer lays Concrete. 01673_ U-05 Engineer builds a Wall. 01673_ U-05 Engineer lays Concrete. 01677_ U-05 Engineer builds a Wall. 01681_ U-05 Engineer builds a Door. 01681_ Slammed into A-02 Transporter. 01795_ K-01 Serf collects debris. 01807_ EXIT=FOUND 01829_ EM Pulse Gun destroyed. 01833_ Lgt. Assault Rifle destroyed. 01843_ Slammed into G-34 Mercenary. 01846_ Slammed into G-47 Trooper. 01846_ Destabilizing: Core damaged (-10). 01847_ G-34 Mercenary misfires. 01847_ Slammed into G-47 Trooper. 01850_ Slammed into G-34 Mercenary. 01852_ G-34 Mercenary destroyed. [Achievement: Fist Fight] [Achievement: First Step to Greatness] Map ----- +----------------------------------------------------+ | ??????????????????????????????????? | | ??????????????????????????????????? | | ??????????????????????????????????? | | ??????????????????????????????????? | | ??????????????????????????????????? | | ??????????????????????????????????? | | ??????????????????????????????????? | | ??????????????????????????????????? | | ??????????????????????????????????? | | ??????????????????????????????????? | | ??????????????????????? ????????? | | ????????????????????? ??????? | | ?????????????????????? k< ???????? | | ?????????????????????? ???????? | | ?????????????????????? ???????? | | ?????????????????????? ???????? | | ??????????????????????# #???????? | | ??????????????????????# #???????? | | ?????????????? ?????# +???????? | | ?????????????# ?????# #???????? | | ?????????????# ?????# #???????? | | ????????????## ##???# #???????? | | ?????????#### ##### #???????? | | ???????? #???????? | | ???????? r r *#???????? | | ???????? a =@#???????? | | ????????????# #####%%%#???????? | | ?????????????# #????# g #???????? | | ?????????????# #????# t ######### | | ?????????????# #????# ## # | | ?????????#???# #???## ## " # | | ?????????#??## ##??# # """ # | | ?????????#??# #??# # """ # | | ?????????#??# #??# + """ # | | ?????????#??# #??# # "" # | | ?????????#??# #??# # """ # | | ?????????#??# #??### ### "" # | | ??????######## ##????# #?# "" # | | ??????# # #?????# #?# " # | | ??????# + #?????# #?# # | | ??????# """ # #?????# #?# # | | ??????# """ # ##????# #?# # | | ??????# """ !# ####### #####+#### | | ??????# %# ### #?# #??? | | ??????######## % #?# #??? | | ????????????## T #?# #??? | | ???????????### #?# #??? | | ?????????######+###### #?# #??? | | ?????????# # ###?# #??? | | ?????????# # #####+#### | +----------------------------------------------------+ Best States ------------- Heat Dissipation 35 Energy Generation 10 Energy Capacity 125 Matter Stores 300 Matter Capacity 300 Sight Range 16 Terrain Scan Density 10 Armor Coverage 150 Resistance: KI 20 Resistance: TH 20 Resistance: EX 20 Resistance: EM 20 Resistance: I 20 Resistance: S 20 Resistance: P 20 Evasion (%) 50 Offensive Hacking 10 Item Schematics ----------------- None Robot Schematics ------------------ None Fabricated ------------ Nothing Alien Tech Used ----------------- None Achievements -------------- Crack Shot Everything Is Under Control First Step to Greatness Fist Fight One Hack Too Far Party Time Challenges ------------ None Game ------ Seed SupercompositeImpactTendrils Manual? 0 Play Time 00:31:31 Cumulative 0.9 hours Start 2021.08.25 @ 09:38:36 End 2021.08.25 @ 10:14:20 Sessions 1 Manual Loads 0 Difficulty Adventurer Special Mode None Game No. 1 Rogue 0 Adventurer 1 Explorer 0 Win Type - Total 0 Types 0/0/0/0/0/0/0/0/0 Lore% 0 Gallery% 1 Achievement% 2 Wizard Run 0 Options --------- ASCII 0 Keyboard 0 Movement Numpad Keybinds 0 Fullscreen 1 Font 16/Terminus Map View 76x50 Tactical HUD 1 Map Filters NONE Filters NONE Steam 1 RUN: aef7338b-8dad-407e-a88a-0bad1b5a8b10